Workbook

Sheet 1 财政拨款收支总表
B1: 表一
B3: 重庆市綦江区司法局（本级）财政拨款收支总表
H4: 单位：万元
B5: 收入 | D5: 支出
B6: 项目 | C6: 预算数 | D6: 项目 | E6: 合计 | F6: 一般公共预算 | G6: 政府性基金预算 | H6: 国有资本经营预算
B7: 一、本年收入 | C7: 1,924.43 | D7: 一、本年支出 | E7: =F7+G7+H7 -> 1,924.43 | F7: =F8+F9+F10+F11 -> 1,924.43
B8: 一般公共预算资金 | C8: 1,924.43 | D8: 公共安全支出 | E8: =F8+G8+H8 -> 1,552.13 | F8: 1,552.13
B9: 政府性基金预算资金 | D9: 社会保障和就业支出 | E9: =F9+G9+H9 -> 215.79 | F9: 215.79
B10: 国有资本经营预算资金 | D10: 卫生健康支出 | E10: =F10+G10+H10 -> 78.96 | F10: 78.96
D11: 住房保障支出 | E11: 77.55 | F11: 77.55
B13: 二、上年结转 | D13: 二、结转下年
B14: 一般公共预算拨款
B15: 政府性基金预算拨款
B16: 国有资本经营收入
B18: 收入合计 | C18: 1,924.43 | D18: 支出合计 | E18: 1,924.43 | F18: 1,924.43

Sheet 2 一般公共预算支出-无上年数
B1: 表二
B2: 重庆市綦江区司法局（本级）一般公共预算财政拨款支出预算表
F5: 单位：万元
B6: 功能分类科目 | D6: 2022年预算数
B7: 科目编码 | C7: 科目名称 | D7: 总计 | E7: 基本支出 | F7: 项目支出
B8: 合计 | D8: =E8+F8 -> 1,924.43 | E8: =E9+E17+E22+E26 -> 1,658.03 | F8: 266.40
B9: 204 | C9: 公共安全支出 | D9: =E9+F9 -> 1,552.13 | E9: 1,285.73 | F9: 266.40
B10: 20406 | C10: 司法 | D10: =E10+F10 -> 1,552.13 | E10: 1,285.73 | F10: 266.40
B11: 2040601 | C11: 行政运行 | D11: 1,285.73 | E11: 1,285.73
B12: 2040602 | C12: 一般行政管理事务 | D12: 55.40 | F12: 55.40
B13: 2040604 | C13: 基层司法业务 | D13: 93.00 | F13: 93.00
B14: 2040605 | C14: 普法宣传 | D14: 77.50 | F14: 77.50
B15: 2040607 | C15: 公共法律服务 | D15: 32.50 | F15: 32.50
B16: 2040612 | C16: 法治建设 | D16: 8.00 | F16: 8.00
B17: 208 | C17: 社会保障和就业支出 | D17: 215.79 | E17: 215.79
B18: 20805 | C18: 行政事业单位养老支出 | D18: 215.79 | E18: 215.79
B19: 2080505 | C19: 机关事业单位基本养老保险缴费支出 | D19: 103.40 | E19: 103.40
B20: 2080506 | C20: 机关事业单位职业年金缴费支出 | D20: 51.70 | E20: 51.70
B21: 2080599 | C21: 其他行政事业单位养老支出 | D21: 60.69 | E21: 60.69
B22: 210 | C22: 卫生健康支出 | D22: 78.96 | E22: 78.96
B23: 21011 | C23: 行政事业单位医疗 | D23: 78.96 | E23: 78.96
B24: 2101101 | C24: 行政单位医疗 | D24: 63.92 | E24: 63.92
B25: 2101103 | C25: 公务员医疗补助 | D25: 15.04 | E25: 15.04
B26: 221 | C26: 住房保障支出 | D26: 77.55 | E26: 77.55
B27: 22102 | C27: 住房改革支出 | D27: 77.55 | E27: 77.55
B28: 2210201 | C28: 住房公积金 | D28: 77.55 | E28: 77.55

Sheet 3 一般公共预算财政基本支出
B1: 表三
B2: 重庆市綦江区司法局（本级）一般公共预算财政拨款基本支出预算表
F5: 单位：万元
B6: 经济分类科目 | D6: 2022年基本支出
B7: 科目编码 | C7: 科目名称 | D7: 总计 | E7: 人员经费 | F7: 日常公用经费
B8: 合计 | D8: =D9+D20+D31 -> 1,658.03 | E8: 1,352.14 | F8: 305.90
B9: 301 | C9: 工资福利支出 | D9: 1,361.17 | E9: 1,289.17 | F9: 72.00
B10: 30101 | C10: 基本工资 | D10: 284.02 | E10: 284.02
B11: 30102 | C11: 津贴补贴 | D11: 315.66 | E11: 315.66
B12: 30103 | C12: 奖金 | D12: 246.47 | E12: 246.47
B13: 30108 | C13: 机关事业单位基本养老保险缴费 | D13: 103.40 | E13: 103.40
B14: 30109 | C14: 职业年金缴费 | D14: 51.70 | E14: 51.70
B15: 30110 | C15: 职工基本医疗保险缴费 | D15: 63.92 | E15: 63.92
B16: 30112 | C16: 其他社会保障缴费 | D16: 14.77 | E16: 14.77
B17: 30113 | C17: 住房公积金 | D17: 109.55 | E17: 77.55 | F17: 32.00
B18: 30114 | C18: 医疗费 | D18: 10.24 | E18: 10.24
B19: 30199 | C19: 其他工资福利支出 | D19: 161.43 | E19: 121.43 | F19: 40.00
B20: 302 | C20: 商品和服务支出 | D20: =E20+F20 -> 234.49 | F20: =SUM(F21:F30) -> 234.49
B21: 30201 | C21: 办公费 | D21: =E21+F21 -> 34.40 | F21: 34.40
B22: 30207 | C22: 邮电费 | D22: 20.01 | F22: 20.01
B23: 30215 | C23: 会议费 | D23: 10.00 | F23: 10.00
B24: 30216 | C24: 培训费 | D24: 9.08 | F24: 9.08
B25: 30217 | C25: 公务接待费 | D25: 3.00 | F25: 3.00
B26: 30228 | C26: 工会经费 | D26: 32.10 | F26: 32.10
B27: 30229 | C27: 福利费 | D27: 8.52 | F27: 8.52
B28: 30231 | C28: 公务用车运行维护费 | D28: 17.50 | F28: 17.50
B29: 30239 | C29: 其他交通费用 | D29: 56.89 | F29: 56.89
B30: 30299 | C30: 其他商品和服务支出 | D30: 42.99 | F30: 42.99
B31: 303 | C31: 对个人和家庭的补助 | D31: 62.37 | E31: 62.37
B32: 30307 | C32: 医疗费补助 | D32: 4.80 | E32: 4.80
B33: 30309 | C33: 奖励金 | D33: 0.07 | E33: 0.07
B34: 30399 | C34: 其他对个人和家庭的补助 | D34: 57.50 | E34: 57.50

Sheet 4 一般公共预算“三公”经费支出表
B1: 表四
B2: 重庆市綦江区司法局（本级）一般公共预算“三公”经费支出表
G5: 单位：万元
B6: 2022年预算数
B7: 合计 | C7: 因公出国（境）费 | D7: 公务用车购置及运行费 | G7: 公务接待费
D8: 小计 | E8: 公务用车购置费 | F8: 公务用车运行费
B9: 23.50 | D9: 17.50 | F9: 17.50 | G9: 6.00

Sheet 5 政府性基金预算支出表
B1: 表五
B2: 重庆市綦江区司法局（本级）政府性基金预算支出表
F5: 单位：万元
B6: 科目编码 | C6: 科目名称 | D6: 本年政府性基金预算财政拨款支出
D7: 总计 | E7: 基本支出 | F7: 项目支出
B8: 合计
B12: （备注：本单位无政府性基金收支，故此表无数据。）

Sheet 6 部门收支总表
C1: 表六
C2: 重庆市綦江区司法局（本级）部门收支总表
F5: 单位：万元
C6: 收入 | E6: 支出
C7: 项目 | D7: 预算数 | E7: 项目 | F7: 预算数
C8: 合计 | D8: 1,924.43 | E8: 合计 | F8: =SUM(F9:F12) -> 1,924.43
B9: 11 | C9: 一般公共预算资金 | D9: 1,924.43 | E9: 公共安全支出 | F9: 1,552.13
C10: 政府性基金预算资金 | E10: 社会保障和就业支出 | F10: 215.79
C11: 国有资本经营预算资金 | E11: 卫生健康支出 | F11: 78.96
C12: 财政专户管理资金 | E12: 住房保障支出 | F12: 77.55
C13: 事业收入资金
C14: 上级补助收入资金
C15: 附属单位上缴收入资金
C16: 事业单位经营收入资金
C17: 其他收入资金

Sheet 7 总门收入总表
B1: 表七
B2: 重庆市綦江区司法局（本级）部门收入总表
M5: 单位：万元
B6: 科目 | D6: 总计 | E6: 一般公共预算拨款收入 | F6: 政府性基金预算拨款收入 | G6: 国有资本经营预算拨款收入 | H6: 财政专户管理资金收入 | I6: 事业收入 | J6: 上级补助收入 | K6: 附属单位上缴收入 | L6: 事业单位经营收入 | M6: 其他收入
B7: 科目编码 | C7: 科目名称
B8: 合计 | D8: =D9+D17+D22+D26 -> 1,924.43 | E8: =E9+E17+E22+E26 -> 1,924.43
B9: 204 | C9: 公共安全支出 | D9: =E9+F9+G9+H9+I9+J9+K9+L9+M9 -> 1,552.13 | E9: =E10 -> 1,552.13
B10: 20406 | C10: 司法 | D10: =E10+F10+G10+H10+I10+J10+K10+L10+M10 -> 1,552.13 | E10: =SUM(E11:E16) -> 1,552.13
B11: 2040601 | C11: 行政运行 | D11: 1,285.73 | E11: 1,285.73
B12: 2040602 | C12: 一般行政管理事务 | D12: 55.40 | E12: 55.40
B13: 2040604 | C13: 基层司法业务 | D13: 93.00 | E13: 93.00
B14: 2040605 | C14: 普法宣传 | D14: 77.50 | E14: 77.50
B15: 2040607 | C15: 公共法律服务 | D15: 32.50 | E15: 32.50
B16: 2040612 | C16: 法治建设 | D16: 8.00 | E16: 8.00
B17: 208 | C17: 社会保障和就业支出 | D17: 215.79 | E17: 215.79
B18: 20805 | C18: 行政事业单位养老支出 | D18: 215.79 | E18: 215.79
B19: 2080505 | C19: 机关事业单位基本养老保险缴费支出 | D19: 103.40 | E19: 103.40
B20: 2080506 | C20: 机关事业单位职业年金缴费支出 | D20: 51.70 | E20: 51.70
B21: 2080599 | C21: 其他行政事业单位养老支出 | D21: 60.69 | E21: 60.69
B22: 210 | C22: 卫生健康支出 | D22: 78.96 | E22: 78.96
B23: 21011 | C23: 行政事业单位医疗 | D23: 78.96 | E23: 78.96
B24: 2101101 | C24: 行政单位医疗 | D24: 63.92 | E24: 63.92
B25: 2101103 | C25: 公务员医疗补助 | D25: 15.04 | E25: 15.04
B26: 221 | C26: 住房保障支出 | D26: 77.55 | E26: 77.55
B27: 22102 | C27: 住房改革支出 | D27: 77.55 | E27: 77.55
B28: 2210201 | C28: 住房公积金 | D28: 77.55 | E28: 77.55

Sheet 8 总门支出总表
B1: 表八
B2: 重庆市綦江区司法局（本级）部门支出总表
F5: 单位：万元
B6: 科目编码 | C6: 科目名称 | D6: 总计 | E6: 基本支出 | F6: 项目支出
B7: 合计 | D7: =D8+D16+D21+D25 -> 1,924.43 | E7: =E8+E16+E21+E25 -> 1,658.03 | F7: =F8 -> 266.40
B8: 204 | C8: 公共安全支出 | D8: =D9 -> 1,552.13 | E8: 1,285.73 | F8: =F9 -> 266.40
B9: 20406 | C9: 司法 | D9: =SUM(D10:D15) -> 1,552.13 | E9: 1,285.73 | F9: =SUM(F11:F15) -> 266.40
B10: 2040601 | C10: 行政运行 | D10: =E10+F10 -> 1,285.73 | E10: 1,285.73
B11: 2040602 | C11: 一般行政管理事务 | D11: =E11+F11 -> 55.40 | F11: 55.40
B12: 2040604 | C12: 基层司法业务 | D12: 93.00 | F12: 93.00
B13: 2040605 | C13: 普法宣传 | D13: 77.50 | F13: 77.50
B14: 2040607 | C14: 公共法律服务 | D14: 32.50 | F14: 32.50
B15: 2040612 | C15: 法治建设 | D15: 8.00 | F15: 8.00
B16: 208 | C16: 社会保障和就业支出 | D16: 215.79 | E16: 215.79
B17: 20805 | C17: 行政事业单位养老支出 | D17: 215.79 | E17: 215.79
B18: 2080505 | C18: 机关事业单位基本养老保险缴费支出 | D18: 103.40 | E18: 103.40
B19: 2080506 | C19: 机关事业单位职业年金缴费支出 | D19: 51.70 | E19: 51.70
B20: 2080599 | C20: 其他行政事业单位养老支出 | D20: 60.69 | E20: 60.69
B21: 210 | C21: 卫生健康支出 | D21: 78.96 | E21: 78.96
B22: 21011 | C22: 行政事业单位医疗 | D22: 78.96 | E22: 78.96
B23: 2101101 | C23: 行政单位医疗 | D23: 63.92 | E23: 63.92
B24: 2101103 | C24: 公务员医疗补助 | D24: 15.04 | E24: 15.04
B25: 221 | C25: 住房保障支出 | D25: 77.55 | E25: 77.55
B26: 22102 | C26: 住房改革支出 | D26: 77.55 | E26: 77.55
B27: 2210201 | C27: 住房公积金 | D27: 77.55 | E27: 77.55

Sheet 9 政府采购明细表
B1: 表九
B2: 重庆市綦江区司法局（本级）政府采购预算明细表
M5: 单位：万元
B6: 项目编号 | C6: 项目 | D6: 总计 | E6: 一般公共预算拨款收入 | F6: 政府性基金预算拨款收入 | G6: 国有资本经营预算拨款收入 | H6: 财政专户管理资金收入 | I6: 事业收入 | J6: 上级补助收入 | K6: 附属单位上缴收入 | L6: 事业单位经营收入 | M6: 其他收入
B7: 合计

Sheet 10 区级项目资金绩效目标表
A1: 附件3-11
A2: 2022年财政资金项目支出绩效目标表
G3: 单位：万元
A4: 项目名称 | B4: 50011022T000000090805-独立运行补丁-司法局
A5: 主管部门 | B5: 209-重庆市綦江区司法局 | D5: 实施单位 | F5: 209001-重庆市綦江区司法局（本级）
A6: 资金总额（万元） | B6: 10 | D6: 项目属性 | F6: 新增
A7: 项目起始时间 | B7: 2022年 | D7: 项目终止时间 | F7: 长期
A8: 项目概况 | B8: 根据区财政局运转性办公经费编制标准执行，按照“三定”方案，履行政府职能，提供公共服务，保证单位正常运转，弥补不足。
A9: 项目当年绩效目标 | B9: 履行政府职能，提供公共服务，保证单位工作正常开展。
A10: 绩效指标 | B10: 一级指标 | C10: 二级指标 | D10: 三级指标 | E10: 指标值 | F10: 指标性质 | G10: 度量单位 | H10: 权重
B11: 产出指标 | C11: 数量指标 | D11: 办公及业务用房面积 | E11: 1686 | F11: ＝ | G11: 平方米 | H11: 20
B12: 产出指标 | C12: 数量指标 | D12: 能耗下降率 | E12: 10 | F12: ≤ | G12: % | H12: 20
B13: 产出指标 | C13: 时效指标 | D13: 目标任务完成率 | E13: 90 | F13: ≥ | G13: % | H13: 20
B14: 效益指标 | C14: 社会效益指标 | D14: 司法公信力 | E14: 90 | F14: ≥ | G14: % | H14: 10
B15: 效益指标 | C15: 可持续影响指标 | D15: 单位正常运转率 | E15: 90 | F15: ≥ | G15: % | H15: 10
B16: 满意度指标 | C16: 服务对象满意度指标 | D16: 司法队伍满意度 | E16: 90 | F16: ≥ | G16: % | H16: 10
A18: 2022年财政资金项目支出绩效目标表
G19: 单位：万元
A20: 项目名称 | B20: 50011022T000000090808-非在编人员-司法局
A21: 主管部门 | B21: 209-重庆市綦江区司法局 | D21: 实施单位 | F21: 209001-重庆市綦江区司法局（本级）
A22: 资金总额（万元） | B22: 37.4 | D22: 项目属性 | F22: 新增
A23: 项目起始时间 | B23: 2022年 | D23: 项目终止时间 | F23: 长期
A24: 项目概况 | B24: 根据区财政局运转性办公经费编制标准执行，根据“三定”方案，履行政府职能，提供公共服务，保障自身运转。
A25: 项目当年绩效目标 | B25: 保证单位工作正常开展，全面完成各项目标任务。
A26: 绩效指标 | B26: 一级指标 | C26: 二级指标 | D26: 三级指标 | E26: 指标值 | F26: 指标性质 | G26: 度量单位 | H26: 权重
B27: 产出指标 | C27: 数量指标 | D27: 安全行驶里程数 | E27: 25000 | F27: ≥ | G27: 公里 | H27: 20
B28: 产出指标 | C28: 质量指标 | D28: 服务质量达标率 | E28: 95 | F28: ≥ | G28: % | H28: 30
B29: 产出指标 | C29: 时效指标 | D29: 预算执行率 | E29: 95 | F29: ≥ | G29: % | H29: 10
B30: 效益指标 | C30: 社会效益指标 | D30: 司法公信力 | E30: 90 | F30: ≥ | G30: % | H30: 10
B31: 效益指标 | C31: 社会效益指标 | D31: 维护社会稳定 | E31: 中 | F31: 定性 | H31: 10
B32: 满意度指标 | C32: 服务对象满意度指标 | D32: 受益对象满意度 | E32: 90 | F32: ≥ | G32: % | H32: 10
A34: 2022年财政资金项目支出绩效目标表
G35: 单位：万元
A36: 项目名称 | B36: 50011022T000000097794-法制援助办案补贴配套经费
A37: 主管部门 | B37: 209-重庆市綦江区司法局 | D37: 实施单位 | F37: 209001-重庆市綦江区司法局（本级）
A38: 资金总额（万元） | B38: 32.5 | D38: 项目属性 | F38: 新增
A39: 项目起始时间 | B39: 2022年 | D39: 项目终止时间 | F39: 长期
A40: 项目概况 | B40: 法律援助是一项民心工程、惠民工程。我局以“应援尽援，应援优援”为宗旨，不断加强经费保障和政策支持力度，有力促进法律援助工作的持续发展。法律援助机构工作人员和广大律师、基层法律服务工作者心系群众，不断创新服务形式，积极履行法律援助义务，承办了大量的法律援助案件，依法有效地维护了未成年人、老年人、妇女、残疾人、农民工等社会弱势群体的合法权益，受到了广大群众的热烈欢迎和社会各界的广泛认可，法律援助工作深入人心。
A41: 项目当年绩效目标 | B41: 以“应援尽援，应援优援”为宗旨，依法有效地维护未成年人、老年人、妇女、残疾人、农民工等社会弱势群体的合法权益，加大对困难群众法律援助力度，严格管理、规范使用法律援助经费。
A42: 绩效指标 | B42: 一级指标 | C42: 二级指标 | D42: 三级指标 | E42: 指标值 | F42: 指标性质 | G42: 度量单位 | H42: 权重
B43: 产出指标 | C43: 数量指标 | D43: 办理法律援助案件数量 | E43: 500 | F43: ≥ | G43: 件 | H43: 20
B44: 产出指标 | C44: 质量指标 | D44: 办理案件质量合格率 | E44: 90 | F44: ≥ | G44: % | H44: 20
B45: 效益指标 | C45: 社会效益指标 | D45: 法律援助受益人数增加 | E45: 500 | F45: ≥ | G45: 个 | H45: 20
B46: 效益指标 | C46: 可持续影响指标 | D46: 法律服务专线接通率 | E46: 95 | F46: ≥ | G46: % | H46: 10
B47: 满意度指标 | C47: 服务对象满意度指标 | D47: 法律咨询满意率 | E47: 90 | F47: ≥ | G47: % | H47: 10
B48: 满意度指标 | C48: 服务对象满意度指标 | D48: 服务对象满意度 | E48: 90 | F48: ≥ | G48: % | H48: 10
A50: 2022年财政资金项目支出绩效目标表
G51: 单位：万元
A52: 项目名称 | B52: 50011022T000000097807-村居法律顾问
A53: 主管部门 | B53: 209-重庆市綦江区司法局 | D53: 实施单位 | F53: 209001-重庆市綦江区司法局（本级）
A54: 资金总额（万元） | B54: 3 | D54: 项目属性 | F54: 新增
A55: 项目起始时间 | B55: 2022年 | D55: 项目终止时间 | F55: 长期
A56: 项目概况 | B56: 委托参与村居法律事务工作，为其提供政策法律等规范性文件的解读，参与村居辖区的普法宣传教育活动，提供法律咨询或法律培训服务，参与法律援助工作，配合村居做好辖内的综治信访维稳工作，依法接受村居委托，参与重大项目或合同谈判、签约活动等。
A57: 项目当年绩效目标 | B57: 村居公共法律服务工作每月提供不少于4个小时的现场法律服务，每季度至少举办一次法治讲座，确保在日常工作中能够随时提供法律咨询等服务工作要求。
A58: 绩效指标 | B58: 一级指标 | C58: 二级指标 | D58: 三级指标 | E58: 指标值 | F58: 指标性质 | G58: 度量单位 | H58: 权重
B59: 产出指标 | C59: 数量指标 | D59: 法律咨询服务 | E59: 240 | F59: ≥ | G59: 分钟/月 | H59: 30
B60: 产出指标 | C60: 数量指标 | D60: 法制讲座 | E60: 10 | F60: ≥ | G60: 场次 | H60: 20
B61: 产出指标 | C61: 成本指标 | D61: 支出控制在预算内 | E61: 100 | F61: ≤ | G61: % | H61: 10
B62: 效益指标 | C62: 社会效益指标 | D62: 群众法律意识 | E62: 良 | F62: 定性 | H62: 10
B63: 效益指标 | C63: 社会效益指标 | D63: 司法公信力 | E63: 90 | F63: ≥ | G63: % | H63: 10
B64: 满意度指标 | C64: 服务对象满意度指标 | D64: 社会公众满意度 | E64: 90 | F64: ≥ | G64: % | H64: 10
A66: 2022年财政资金项目支出绩效目标表
G67: 单位：万元
A68: 项目名称 | B68: 50011022T000000097817-普法宣传
A69: 主管部门 | B69: 209-重庆市綦江区司法局 | D69: 实施单位 | F69: 209001-重庆市綦江区司法局（本级）
A70: 资金总额（万元） | B70: 77.5 | D70: 项目属性 | F70: 新增
A71: 项目起始时间 | B71: 2022年 | D71: 项目终止时间 | F71: 长期
A72: 项目概况 | B72: (1)组织开展主题法治宣传活动，广大群众法治意识明显提升；(2)针对学校青少年群体，结合实际需求，实行订单式普法；(3)全区机关事业工作人员、村居干部普法考试全员参与，法治素养进一步提升；(4)农村法治阵地更加完善，农民法治意识进一步增强；(5)创建一批市级民主法治示范村（社区）、打造一批法治教育示范点；(6)向市民免费发放普法宣传资料，增强广大群众法治观念。
A73: 项目当年绩效目标 | B73: (1)组织开展主题法治宣传活动，广大群众法治意识明显提升；(2)针对学校青少年群体，结合实际需求，实行订单式普法；(3)全区机关事业工作人员、村居干部普法考试全员参与，法治素养进一步提升；(4)农村法治阵地更加完善，农民法治意识进一步增强；(5)创建一批市级民主法治示范村（社区）、打造一批法治教育示范点；(6)向市民免费发放普法宣传资料，增强广大群众法治观念。
A74: 绩效指标 | B74: 一级指标 | C74: 二级指标 | D74: 三级指标 | E74: 指标值 | F74: 指标性质 | G74: 度量单位 | H74: 权重
B75: 产出指标 | C75: 数量指标 | D75: 发放宣传资料 | E75: 50000 | F75: ≥ | G75: 份 | H75: 20
B76: 产出指标 | C76: 数量指标 | D76: 法治讲座场次 | E76: 300 | F76: ≥ | G76: 场次 | H76: 20
B77: 产出指标 | C77: 数量指标 | D77: 领导干部庭审参与率 | E77: 80 | F77: ≥ | G77: % | H77: 10
B78: 产出指标 | C78: 数量指标 | D78: 普法知晓率 | E78: 80 | F78: ≥ | G78: % | H78: 10
B79: 效益指标 | C79: 社会效益指标 | D79: 司法公信力 | E79: 90 | F79: ≥ | G79: % | H79: 10
B80: 效益指标 | C80: 可持续影响指标 | D80: 干群法律素养 | E80: 好 | F80: 定性 | H80: 10
B81: 满意度指标 | C81: 服务对象满意度指标 | D81: 干群的满意度 | E81: 90 | F81: ≥ | G81: % | H81: 10
A83: 2022年财政资金项目支出绩效目标表
G84: 单位：万元
A85: 项目名称 | B85: 50011022T000000097829-人民调解经费
A86: 主管部门 | B86: 209-重庆市綦江区司法局 | D86: 实施单位 | F86: 209001-重庆市綦江区司法局（本级）
A87: 资金总额（万元） | B87: 2 | D87: 项目属性 | F87: 新增
A88: 项目起始时间 | B88: 2022年 | D88: 项目终止时间 | F88: 长期
A89: 项目概况 | B89: 完善人民调解的宣传和对人民调解员的培训和表彰，规范化建设人民调解委员会，落实人民调解案卷的补贴，提升人民调解队伍的业务知识和调解水平，把矛盾纠纷化解在基层，维护社会稳定。
A90: 项目当年绩效目标 | B90: 完善人民调解的宣传和对人民调解员的培训和表彰，规范化建设人民调解委员会，落实人民调解案卷的补贴，人民调解队伍的业务知识、调解水平不断升。
A91: 绩效指标 | B91: 一级指标 | C91: 二级指标 | D91: 三级指标 | E91: 指标值 | F91: 指标性质 | G91: 度量单位 | H91: 权重
B92: 产出指标 | C92: 数量指标 | D92: 调解案件数量 | E92: 5000 | F92: ≥ | G92: 案件数 | H92: 20
B93: 产出指标 | C93: 数量指标 | D93: 人民调解成功率 | E93: 90 | F93: ≥ | G93: % | H93: 20
B94: 产出指标 | C94: 时效指标 | D94: 案件调解时效性 | E94: 15 | F94: ≤ | G94: 天 | H94: 20
B95: 效益指标 | C95: 社会效益指标 | D95: 案件办结率 | E95: 90 | F95: ≥ | G95: % | H95: 10
B96: 效益指标 | C96: 社会效益指标 | D96: 维护社会稳定 | E96: 优 | F96: 定性 | H96: 10
B97: 满意度指标 | C97: 服务对象满意度指标 | D97: 服务对象满意度 | E97: 90 | F97: ≥ | G97: % | H97: 10
A99: 2022年财政资金项目支出绩效目标表
G100: 单位：万元
A101: 项目名称 | B101: 50011022T000000097834-司法协管员经费
A102: 主管部门 | B102: 209-重庆市綦江区司法局 | D102: 实施单位 | F102: 209001-重庆市綦江区司法局（本级）
A103: 资金总额（万元） | B103: 88 | D103: 项目属性 | F103: 新增
A104: 项目起始时间 | B104: 2022年 | D104: 项目终止时间 | F104: 长期
A105: 项目概况 | B105: 政府购买服务补充基层司法所力量，主要承担着法制宣传、人民调解、社区矫正、安置帮教、法律援助等辅助性工作。
A106: 项目当年绩效目标 | B106: 协助司法所做好社区矫正及安置帮教工作，管理好辖区内的社区矫正人员和刑释解教人员，并制作相应档案；协助做好法律援助工作，做到应援尽援；协助做好人民调解，做到应调尽调，小纠纷不出村（居），大纠纷不出镇（街），重大纠纷不出区；协助做好法制宣传工作等，协助司法所完成区司法局、镇（街）政府交办的各项工作。
A107: 绩效指标 | B107: 一级指标 | C107: 二级指标 | D107: 三级指标 | E107: 指标值 | F107: 指标性质 | G107: 度量单位 | H107: 权重
B108: 产出指标 | C108: 数量指标 | D108: 购买服务数量 | E108: 26 | F108: ≤ | G108: 人数 | H108: 20
B109: 产出指标 | C109: 质量指标 | D109: 购买服务完成率 | E109: 95 | F109: ≥ | G109: % | H109: 20
B110: 产出指标 | C110: 成本指标 | D110: 支出控制在预算内 | E110: 100 | F110: ≤ | G110: % | H110: 20
B111: 效益指标 | C111: 社会效益指标 | D111: 司法公信力 | E111: 90 | F111: ≥ | G111: % | H111: 10
B112: 效益指标 | C112: 社会效益指标 | D112: 维护社会稳定 | E112: 优 | F112: 定性 | H112: 10
B113: 满意度指标 | C113: 服务对象满意度指标 | D113: 服务对象满意度 | E113: 90 | F113: ≥ | G113: % | H113: 10
A115: 2022年财政资金项目支出绩效目标表
G116: 单位：万元
A117: 项目名称 | B117: 50011022T000000097844-依法治区经费
A118: 主管部门 | B118: 209-重庆市綦江区司法局 | D118: 实施单位 | F118: 209001-重庆市綦江区司法局（本级）
A119: 资金总额（万元） | B119: 2 | D119: 项目属性 | F119: 新增
A120: 项目起始时间 | B120: 2022年 | D120: 项目终止时间 | F120: 长期
A121: 项目概况 | B121: 深入贯彻落实中央、市委工作要求，认真学习领会习近平法治思想，进一步深化认识、凝聚共识；全面推进各项工作开展，夯实基础。加强理论培训，提升领导干部法治思维和法治能力；通过法治政府示范创建工作，为我区经济社会建设提供坚强的法治保障。
A122: 项目当年绩效目标 | B122: 深入贯彻落实中央、市委工作要求，认真学习领会习近平法治思想，进一步深化认识、凝聚共识；全面推进各项工作开展，夯实基础。加强理论培训，提升领导干部法治思维和法治能力；通过法治政府示范创建工作，为我区经济社会建设提供坚强的法治保障。
A123: 绩效指标 | B123: 一级指标 | C123: 二级指标 | D123: 三级指标 | E123: 指标值 | F123: 指标性质 | G123: 度量单位 | H123: 权重
B124: 产出指标 | C124: 数量指标 | D124: 依法治区工作任务完成率 | E124: 90 | F124: ≥ | G124: % | H124: 20
B125: 产出指标 | C125: 数量指标 | D125: 依法治区培训人次 | E125: 150 | F125: ≥ | G125: 人次 | H125: 10
B126: 产出指标 | C126: 数量指标 | D126: 依法治区相关会议 | E126: 10 | F126: ≥ | G126: 场次 | H126: 20
B127: 产出指标 | C127: 成本指标 | D127: 支出控制在预算内 | E127: 100 | F127: ≤ | G127: % | H127: 10
B128: 效益指标 | C128: 社会效益指标 | D128: 司法公信力 | E128: 90 | F128: ≥ | G128: % | H128: 10
B129: 效益指标 | C129: 社会效益指标 | D129: 提升法治环境氛围 | E129: 优 | F129: 定性 | H129: 10
B130: 满意度指标 | C130: 服务对象满意度指标 | D130: 群众满意度 | E130: 90 | F130: ≥ | G130: % | H130: 10
A132: 2022年财政资金项目支出绩效目标表
G133: 单位：万元
A134: 项目名称 | B134: 50011022T000000097846-法制监督经费
A135: 主管部门 | B135: 209-重庆市綦江区司法局 | D135: 实施单位 | F135: 209001-重庆市綦江区司法局（本级）
A136: 资金总额（万元） | B136: 3 | D136: 项目属性 | F136: 新增
A137: 项目起始时间 | B137: 2022年 | D137: 项目终止时间 | F137: 长期
A138: 项目概况 | B138: 行政执法监督是负有监督职责的国家机关对行政执法主体实施行政执法行为，是否符合行政法律规范进行监察与督促，并且对违法行为予以纠正的活动。主要业务是开展行政执法检查、调阅有关行政执法案卷和文件资料等，以及对行政执法人员日常管理、资格审查、专门法律知识培训、法律知识更新培训、离岗培训、年度考核、执法证件管理和执法监督等工作。
A139: 项目当年绩效目标 | B139: 规范行政执法行为，提升依法行政水平，助推法治政府建设走向深入。
A140: 绩效指标 | B140: 一级指标 | C140: 二级指标 | D140: 三级指标 | E140: 指标值 | F140: 指标性质 | G140: 度量单位 | H140: 权重
B141: 产出指标 | C141: 数量指标 | D141: 案件评查件数 | E141: 100 | F141: ≥ | G141: 案件数 | H141: 15
B142: 产出指标 | C142: 数量指标 | D142: 培训人次 | E142: 500 | F142: ≥ | G142: 人次 | H142: 20
B143: 产出指标 | C143: 质量指标 | D143: 培训人员合格率 | E143: 90 | F143: ≥ | G143: % | H143: 10
B144: 产出指标 | C144: 质量指标 | D144: 问题整改落实率 | E144: 90 | F144: ≥ | G144: % | H144: 15
B145: 效益指标 | C145: 社会效益指标 | D145: 案件办结率 | E145: 90 | F145: ≥ | G145: % | H145: 10
B146: 效益指标 | C146: 社会效益指标 | D146: 执法公信力度 | E146: 90 | F146: ≥ | G146: % | H146: 10
B147: 满意度指标 | C147: 服务对象满意度指标 | D147: 服务对象满意度 | E147: 90 | F147: ≥ | G147: % | H147: 10
A149: 2022年财政资金项目支出绩效目标表
G150: 单位：万元
A151: 项目名称 | B151: 50011022T000000097851-法制建设经费
A152: 主管部门 | B152: 209-重庆市綦江区司法局 | D152: 实施单位 | F152: 209001-重庆市綦江区司法局（本级）
A153: 资金总额（万元） | B153: 3 | D153: 项目属性 | F153: 新增
A154: 项目起始时间 | B154: 2022年 | D154: 项目终止时间 | F154: 长期
A155: 项目概况 | B155: (1)规范性文件、政府性合同、重大行政决策的审查；（2）行政复议/诉讼、裁决、处理、履职等案件办理及培训会；（3）召开案审会及与法院的联席会。
A156: 项目当年绩效目标 | B156: 确保规范性文件有件必备、有备必审、有错必纠，把好重大行政决策合法性审查关，保障人民群众合法权利和国有资产安全；做好行政复议/诉讼/裁决/处理案件的办理，为区政府行政决策发挥参谋助手作用。
A157: 绩效指标 | B157: 一级指标 | C157: 二级指标 | D157: 三级指标 | E157: 指标值 | F157: 指标性质 | G157: 度量单位 | H157: 权重
B158: 产出指标 | C158: 数量指标 | D158: 案件集体讨论次数 | E158: 4 | F158: ≥ | G158: 次 | H158: 10
B159: 产出指标 | C159: 数量指标 | D159: 规范性文件备案审查率 | E159: 95 | F159: ≥ | G159: % | H159: 20
B160: 产出指标 | C160: 数量指标 | D160: 行政复议案件办理数 | E160: 60 | F160: ≥ | G160: 件 | H160: 20
B161: 产出指标 | C161: 数量指标 | D161: 行政应诉案件办理数 | E161: 140 | F161: ≥ | G161: 件 | H161: 10
B162: 效益指标 | C162: 社会效益指标 | D162: 司法公信力 | E162: 90 | F162: ≥ | G162: % | H162: 10
B163: 效益指标 | C163: 可持续影响指标 | D163: 促进相关法律法规落实 | E163: 90 | F163: ≥ | G163: % | H163: 10
B164: 满意度指标 | C164: 服务对象满意度指标 | D164: 受益对象满意度 | E164: 90 | F164: ≥ | G164: % | H164: 10
A166: 2022年财政资金项目支出绩效目标表
G167: 单位：万元
A168: 项目名称 | B168: 50011022T000002011715-招商引资经费
A169: 主管部门 | B169: 209-重庆市綦江区司法局 | D169: 实施单位 | F169: 209001-重庆市綦江区司法局（本级）
A170: 资金总额（万元） | B170: 8 | D170: 项目属性 | F170: 新增
A171: 项目起始时间 | B171: 2022年 | D171: 项目终止时间 | F171: 长期
A172: 项目概况 | B172: 参与重大招商项目联席会，审核相关文件合同的合规性，引进法律行业相关服务项目，招商优惠政策宣传等，完成区委区府交办的其他任务。
A173: 项目当年绩效目标 | B173: 参与重大招商项目联席会，审核相关文件合同的合规性，引进法律行业相关服务项目，招商优惠政策宣传等，完成区委区府交办的其他任务。
A174: 绩效指标 | B174: 一级指标 | C174: 二级指标 | D174: 三级指标 | E174: 指标值 | F174: 指标性质 | G174: 度量单位 | H174: 权重
B175: 产出指标 | C175: 数量指标 | D175: 参与招商项目磋商 | E175: 10 | F175: ≥ | G175: 场次 | H175: 20
B176: 产出指标 | C176: 数量指标 | D176: 文件合同审核 | E176: 10 | F176: ≥ | G176: 件 | H176: 20
B177: 产出指标 | C177: 成本指标 | D177: 支出控制在预算内 | E177: 90 | F177: ≤ | G177: % | H177: 20
B178: 效益指标 | C178: 社会效益指标 | D178: 司法公信力 | E178: 90 | F178: ≥ | G178: % | H178: 10
B179: 效益指标 | C179: 社会效益指标 | D179: 维护社会稳定 | E179: 明显改善 | F179: 定性 | H179: 10
B180: 满意度指标 | C180: 服务对象满意度指标 | D180: 服务对象满意度 | E180: 90 | F180: ≥ | G180: % | H180: 10
